[Event "DFMMLV 2019"]
[Site "Braunfels"]
[Date "2019.06.23"]
[Round "5.17"]
[White "Froehlich, Franziska"]
[Black "Braeutigam, Irina"]
[Result "0-1"]
[ECO "B22"]
[WhiteElo "1820"]
[BlackElo "1973"]
[Annotator "NA"]
[PlyCount "24"]
[EventDate "2019.06.20"]
[EventType "team-tourn"]
[EventCountry "GER"]
[SourceTitle "playchess.com"]
[Source "ChessBase"]
[SourceQuality "1"]
[WhiteTeam "Wuerttemberg 2"]
[BlackTeam "Schleswig Holstein"]
[TimeControl "40/5400+30:1800+30"]

1. e4 {[%emt 0:00:00]} c5 {[%emt 0:00:00]} 2. c3 {[%emt 0:00:00]} d5 {[%emt 0:00:12]} 3. exd5 {[%emt 0:00:04]} Qxd5 {[%emt 0:00:04]} 4. d4 {[%emt 0:00:07]} Nc6 {[%emt 0:00:05]} 5. Nf3 {[%emt 0:00:12]} Bf5 {[%emt 0:00:36]} 6. Na3 {[%emt 0:00:44]} cxd4 {[%emt 0:02:22]} 7. Nb5 {[%emt 0:06:05]} O-O-O {[%emt 0:06:04]} 8. cxd4 {[%emt 0:13:45]} e5 {[%emt 0:10:07]} 9. Nc3 {[%emt 0:03:29]} Qa5 {[%emt 0:10:48]} 10. Bd2 {[%emt 0:17:55]} exd4 {[%emt 0:08:24]} 11. Nb5 {[%emt 0:05:06]} Re8+ {[%emt 0:03:11]} 12. Be2 {[%emt 0:01:26]} Qxb5 {[%emt 0:00:15]} 0-1

[Event "DFMMLV 2019"]
[Site "Braunfels"]
[Date "2019.06.23"]
[Round "5.18"]
[White "Glinzner, Alva"]
[Black "Yi, Wendy"]
[Result "1-0"]
[ECO "C68"]
[WhiteElo "1833"]
[BlackElo "1820"]
[Annotator "NA"]
[PlyCount "45"]
[EventDate "2019.06.20"]
[EventType "team-tourn"]
[EventCountry "GER"]
[SourceTitle "playchess.com"]
[Source "ChessBase"]
[SourceQuality "1"]
[WhiteTeam "Schleswig Holstein"]
[BlackTeam "Wuerttemberg 2"]
[TimeControl "40/5400+30:1800+30"]

1. e4 {[%emt 0:00:00]} e5 {[%emt 0:00:00]} 2. Nf3 {[%emt 0:00:00]} Nc6 {[%emt 0:00:00]} 3. Bb5 {[%emt 0:00:00]} a6 {[%emt 0:00:12]} 4. Bxc6 {[%emt 0:00:01]} dxc6 {[%emt 0:00:46]} 5. O-O {[%emt 0:00:17]} Bg4 {[%emt 0:06:35]} 6. h3 {[%emt 0:00:16]} Bxf3 {[%emt 0:00:10]} 7. Qxf3 {[%emt 0:00:12]} Bd6 {[%emt 0:05:58]} 8. d3 {[%emt 0:00:52]} Qf6 {[%emt 0:02:22]} 9. Qg3 {[%emt 0:04:38]} Ne7 {[%emt 0:05:15]} 10. Nd2 {[%emt 0:01:02]} Ng6 {[%emt 0:07:36]} 11. Nc4 {[%emt 0:01:54]} h6 {[%emt 0:06:38]} 12. Ne3 {[%emt 0:05:34]} Nf4 {[%emt 0:04:58]} 13. Qf3 {[%emt 0:00:49]} h5 {[%emt 0:10:44]} 14. Nf5 {[%emt 0:11:58]} g6 {[%emt 0:02:47]} 15. Nxd6+ {[%emt 0:05:34]} cxd6 {[%emt 0:00:15]} 16. h4 {[%emt 0:05:26]} Qxh4 {[%emt 0:12:13]} 17. g3 {[%emt 0:01:08]} Nh3+ {[%emt 0:00:13]} 18. Kg2 {[%emt 0:00:07]} Qg4 {[%emt 0:00:29]} 19. Qf6 {[%emt 0:02:20]} Nf4+ {[%emt 0:03:53]} 20. Bxf4 {[%emt 0:01:51]} exf4 {[%emt 0:00:16]} 21. Qxh8+ {[%emt 0:01:56]} Ke7 {[%emt 0:00:27]} 22. Qxa8 {[%emt 0:00:22]} f3+ {[%emt 0:00:28]} 23. Kh2 {[%emt 0:00:03]} 1-0

[Event "DFMMLV 2019"]
[Site "Braunfels"]
[Date "2019.06.23"]
[Round "5.19"]
[White "Lederer, Leia"]
[Black "Leib, Britta"]
[Result "1-0"]
[ECO "C02"]
[WhiteElo "1728"]
[BlackElo "1884"]
[Annotator "NA RC"]
[PlyCount "115"]
[EventDate "2019.06.20"]
[EventType "team-tourn"]
[EventCountry "GER"]
[SourceTitle "playchess.com"]
[Source "ChessBase"]
[SourceQuality "1"]
[WhiteTeam "Wuerttemberg 2"]
[BlackTeam "Schleswig Holstein"]
[TimeControl "40/5400+30:1800+30"]

1. e4 {[%emt 0:00:00]} e6 {[%emt 0:00:00]} 2. d4 {[%emt 0:00:00]} d5 {[%emt 0:00:00]} 3. e5 {[%emt 0:00:03]} c5 {[%emt 0:00:03]} 4. Nf3 {[%emt 0:00:14]} cxd4 {[%emt 0:05:01]} 5. Nxd4 {[%emt 0:01:02]} Nc6 {[%emt 0:00:43]} 6. Nf3 {[%emt 0:10:18] C02: French: Advance Variation} (6. Nxc6 bxc6 7. Bd3 Ne7 8. Nd2 Ng6 9. Nf3 Be7 10. Qe2 c5 11. c4 Bb7 12. O-O O-O 13. Bd2 dxc4 14. Bxc4 Bxf3 15. gxf3 Bg5 16. Be3 Bf4 17. Rfc1 Qh4 18. Bxf4 Nxf4 19. Qe3 Qg5+ 20. Kf1 Rad8 21. Rd1 Qg2+ {0-1 (21) Bastian,H (2351)-Khenkin,I (2597) Bad Liebenzell 2010}) 6... Nge7 {[%emt 0:16:30]} 7. Bg5 {[%emt 0:03:54]} Qb6 {[%emt 0:03:41]} 8. Nc3 $146 {[%emt 0:01:52]} ({Predecessor:} 8. b3 Ng6 9. c4 Bb4+ 10. Nbd2 dxc4 11. Bxc4 Ngxe5 12. Nxe5 Nxe5 13. Be2 O-O {0-1 (26) Klishina,N-Shumilina,A Nizhnij Novgorod 1999}) 8... a6 {[%emt 0:02:28]} 9. Be3 {[%emt 0:14:03]} Qc7 {[%emt 0:08:39]} 10. Qd2 {[%emt 0:23:04]} Nxe5 {[%emt 0:14:55]} 11. Nxe5 {[%emt 0:00:45]} Qxe5 {[%emt 0:00:08]} 12. O-O-O {[%emt 0:00:28]} h6 {[%emt 0:02:19]} 13. Bf4 {[%emt 0:00:44]} Qh5 {[%emt 0:06:00]} 14. Ne4 {[%emt 0:07:55]} Ng6 {[%emt 0:09:43]} 15. Nd6+ {[%emt 0:03:46]} Bxd6 {[%emt 0:01:50]} 16. Bxd6 {[%emt 0:00:04]} Qg5 {[%emt 0:01:05]} 17. f4 {[%emt 0:00:58]} Qd8 {[%emt 0:00:15]} 18. Bb4 {[%emt 0:01:56]} Ne7 {[%emt 0:01:46]} 19. g4 {[%emt 0:00:33]} O-O {[%emt 0:10:18]} 20. h4 {[%emt 0:00:22]} Re8 {[%emt 0:01:54]} 21. h5 {[%emt 0:00:45]} Nc6 {[%emt 0:02:57]} 22. Bd3 {[%emt 0:04:39]} e5 {[%emt 0:04:57]} 23. f5 {[%emt 0:08:37]} Qg5 {[%emt 0:00:58]} 24. Qxg5 {[%emt 0:02:07]} hxg5 {[%emt 0:00:02]} 25. Ba3 {[%emt 0:00:57]} e4 {[%emt 0:04:12]} 26. Be2 {[%emt 0:00:09]} Ne5 {[%emt 0:00:03]} 27. Rxd5 {[%emt 0:01:02]} Bd7 {[%emt 0:00:01]} 28. Bd6 {[%emt 0:01:19]} f6 {[%emt 0:00:29]} 29. Bxe5 {[%emt 0:00:17]} Bc6 {[%emt 0:00:00]} 30. Rd6 {[%emt 0:00:36]} Rxe5 {[%emt 0:00:11]} 31. Bc4+ {[%emt 0:01:27]} Kh7 {[%emt 0:01:03]} 32. h6 {[%emt 0:02:10]} e3 {[%emt 0:00:06]} 33. Re1 {[%emt 0:02:02]} Bf3 {[%emt 0:01:23]} 34. hxg7 {[%emt 0:01:12]} Kxg7 {[%emt 0:00:07]} 35. Rd7+ {[%emt 0:00:09]} Kh8 {[%emt 0:01:04]} 36. Be2 {[%emt 0:01:50]} Bc6 {[%emt 0:00:01]} 37. Rf7 {[%emt 0:00:20]} Rc8 {[%emt 0:00:28]} 38. Rxf6 {[%emt 0:00:40]} Be4 {[%emt 0:01:08]} 39. c3 {[%emt 0:00:10]} Rd8 {[%emt 0:01:06]} 40. Bc4 {[%emt 0:04:45]} Rd2 {[%emt 0:01:23]} 41. Rxe3 {[%emt 0:30:50]} Rc2+ {[%emt 0:03:39]} 42. Kd1 {[%emt 0:00:00]} Rh2 {[%emt 0:00:15]} 43. Re6 {[%emt 0:00:00]} Rh1+ {[%emt 0:01:54]} 44. Kd2 {[%emt 0:00:00]} Rh2+ {[%emt 0:03:38]} 45. Re2 {[%emt 0:00:00]} Rxe2+ {[%emt 0:00:46]} 46. Kxe2 {[%emt 0:00:00]} Rxe6 {[%emt 0:00:31]} 47. Bxe6 {[%emt 0:00:00]} Kg7 {[%emt 0:00:30]} 48. Ke3 {[%emt 0:00:00]} Bb1 {[%emt 0:02:52]} 49. a3 {[%emt 0:00:00]} b6 {[%emt 0:00:19]} 50. Kd4 {[%emt 0:00:00]} Kf6 {[%emt 0:00:34]} 51. b4 {[%emt 0:00:00]} Bc2 {[%emt 0:00:17]} 52. Bc8 {[%emt 0:00:00]} a5 {[%emt 0:02:32]} 53. bxa5 {[%emt 0:00:00]} bxa5 {[%emt 0:00:01]} 54. c4 {[%emt 0:00:00]} Bd1 {[%emt 0:00:23]} 55. c5 {[%emt 0:00:00]} Bxg4 {[%emt 0:01:57]} 56. c6 {[%emt 0:00:00]} Bf3 {[%emt 0:01:51]} 57. c7 {[%emt 0:00:00]} g4 {[%emt 0:00:20]} 58. Ba6 {[%emt 0:00:00]} 1-0

[Event "DFMMLV 2019"]
[Site "Braunfels"]
[Date "2019.06.23"]
[Round "5.20"]
[White "Gressmann, Hanna"]
[Black "Roesler, Hannah Clara Hed"]
[Result "1-0"]
[ECO "B25"]
[WhiteElo "1840"]
[BlackElo "1638"]
[Annotator "NA"]
[PlyCount "115"]
[EventDate "2019.06.20"]
[EventType "team-tourn"]
[EventCountry "GER"]
[SourceTitle "playchess.com"]
[Source "ChessBase"]
[SourceQuality "1"]
[WhiteTeam "Schleswig Holstein"]
[BlackTeam "Wuerttemberg 2"]
[TimeControl "40/5400+30:1800+30"]

1. e4 {[%emt 0:00:00]} c5 {[%emt 0:02:42]} 2. Nc3 {[%emt 0:00:00]} Nc6 {[%emt 0:00:18]} 3. g3 {[%emt 0:00:00]} g6 {[%emt 0:00:34]} 4. Bg2 {[%emt 0:00:00]} Bg7 {[%emt 0:00:25]} 5. d3 {[%emt 0:00:10]} d6 {[%emt 0:00:54]} 6. f4 {[%emt 0:00:16]} e6 {[%emt 0:01:10]} 7. Nf3 {[%emt 0:00:22]} Nge7 {[%emt 0:01:22]} 8. O-O {[%emt 0:00:55]} O-O {[%emt 0:02:33]} 9. Be3 {[%emt 0:00:29]} Nd4 {[%emt 0:01:30]} 10. e5 {[%emt 0:01:55]} Nef5 {[%emt 0:09:30]} 11. Bf2 {[%emt 0:00:31]} Nxf3+ {[%emt 0:02:21]} 12. Qxf3 {[%emt 0:00:22]} Nd4 {[%emt 0:00:31]} 13. Qd1 {[%emt 0:00:09]} dxe5 {[%emt 0:01:40]} 14. fxe5 {[%emt 0:00:15]} Bxe5 {[%emt 0:00:46]} 15. Ne4 {[%emt 0:00:24]} f5 {[%emt 0:09:04]} 16. Nxc5 {[%emt 0:02:59]} Qd6 {[%emt 0:08:16]} 17. Na4 {[%emt 0:15:36]} Rd8 {[%emt 0:07:38]} 18. c3 {[%emt 0:04:37]} Nc6 {[%emt 0:02:58]} 19. d4 {[%emt 0:01:12]} Bg7 {[%emt 0:02:21]} 20. b4 {[%emt 0:02:24]} Rb8 {[%emt 0:07:39]} 21. Nc5 {[%emt 0:08:27]} b6 {[%emt 0:03:24]} 22. Nd3 {[%emt 0:02:21]} Bb7 {[%emt 0:03:12]} 23. Be3 {[%emt 0:04:10]} Qe7 {[%emt 0:02:29]} 24. Qb3 {[%emt 0:02:27]} Kh8 {[%emt 0:03:14]} 25. Rfe1 {[%emt 0:02:44]} Qd7 {[%emt 0:03:47]} 26. Bf4 {[%emt 0:01:58]} e5 {[%emt 0:06:35]} 27. Nxe5 {[%emt 0:03:33]} Nxe5 {[%emt 0:00:29]} 28. Bxe5 {[%emt 0:00:38]} Rbc8 {[%emt 0:02:15]} 29. Bxg7+ {[%emt 0:05:41]} Kxg7 {[%emt 0:00:29]} 30. Rac1 {[%emt 0:01:04]} Bxg2 {[%emt 0:02:04]} 31. Kxg2 {[%emt 0:00:11]} b5 {[%emt 0:00:40]} 32. Kf2 {[%emt 0:04:22]} Re8 {[%emt 0:02:07]} 33. Rxe8 {[%emt 0:02:25]} Rxe8 {[%emt 0:00:16]} 34. Re1 {[%emt 0:01:23]} Re4 {[%emt 0:01:56]} 35. Qc2 {[%emt 0:01:51]} Qf7 {[%emt 0:03:15]} 36. Qb3 {[%emt 0:03:09]} Qe8 {[%emt 0:01:58]} 37. Rxe4 {[%emt 0:03:57]} Qxe4 {[%emt 0:00:41]} 38. Qd1 {[%emt 0:00:37]} Kf6 {[%emt 0:02:45]} 39. Qd2 {[%emt 0:03:39]} g5 {[%emt 0:01:40]} 40. d5 {[%emt 0:02:05]} Ke5 {[%emt 0:01:46]} 41. d6 {[%emt 0:31:12]} Qa8 {[%emt 0:12:27]} 42. d7 {[%emt 0:00:00]} Qd8 {[%emt 0:00:21]} 43. Qe2+ {[%emt 0:00:00]} Kd6 {[%emt 0:01:26]} 44. Qxb5 {[%emt 0:00:00]} Qxd7 {[%emt 0:01:07]} 45. Qxd7+ {[%emt 0:00:00]} Kxd7 {[%emt 0:00:05]} 46. Ke3 {[%emt 0:00:00]} Kc6 {[%emt 0:00:56]} 47. c4 {[%emt 0:00:00]} Kd6 {[%emt 0:01:08]} 48. Kd4 {[%emt 0:00:00]} h5 {[%emt 0:00:14]} 49. c5+ {[%emt 0:00:00]} Ke6 {[%emt 0:00:16]} 50. b5 {[%emt 0:00:00]} f4 {[%emt 0:00:18]} 51. gxf4 {[%emt 0:00:00]} g4 {[%emt 0:00:15]} 52. Ke4 {[%emt 0:00:00]} h4 {[%emt 0:00:22]} 53. f5+ {[%emt 0:00:00]} Kf6 {[%emt 0:00:24]} 54. Kf4 {[%emt 0:00:00]} g3 {[%emt 0:00:18]} 55. hxg3 {[%emt 0:00:00]} h3 {[%emt 0:00:23]} 56. Kf3 {[%emt 0:00:00]} Kxf5 {[%emt 0:00:46]} 57. b6 {[%emt 0:00:00]} h2 {[%emt 0:00:17]} 58. Kg2 {[%emt 0:00:00]} 1-0

[Event "DFMMLV 2019"]
[Site "Braunfels"]
[Date "2019.06.23"]
[Round "5.21"]
[White "Hoeglauer, Jenny"]
[Black "Hielscher, Ursula"]
[Result "1-0"]
[ECO "C15"]
[WhiteElo "1703"]
[BlackElo "1796"]
[Annotator "NA"]
[PlyCount "79"]
[EventDate "2019.06.20"]
[EventType "team-tourn"]
[EventCountry "GER"]
[SourceTitle "playchess.com"]
[Source "ChessBase"]
[SourceQuality "1"]
[WhiteTeam "Wuerttemberg 2"]
[BlackTeam "Schleswig Holstein"]
[TimeControl "40/5400+30:1800+30"]

1. e4 {[%emt 0:00:00]} e6 {[%emt 0:00:00]} 2. d4 {[%emt 0:00:00]} d5 {[%emt 0:00:00]} 3. Nc3 {[%emt 0:00:07]} Bb4 {[%emt 0:00:00]} 4. exd5 {[%emt 0:00:40]} exd5 {[%emt 0:00:00]} 5. Bd2 {[%emt 0:02:12]} Nf6 {[%emt 0:01:12]} 6. Nf3 {[%emt 0:01:39]} Bg4 {[%emt 0:00:31]} 7. a3 {[%emt 0:03:09]} Bxc3 {[%emt 0:03:11]} 8. Bxc3 {[%emt 0:00:33]} O-O {[%emt 0:00:11]} 9. Be2 {[%emt 0:05:45]} Re8 {[%emt 0:01:07]} 10. O-O {[%emt 0:00:32]} Ne4 {[%emt 0:03:00]} 11. Bd2 {[%emt 0:07:11]} Qe7 {[%emt 0:06:23]} 12. Ne5 Bxe2 {[%emt 0:00:37]} 13. Qxe2 {[%emt 0:06:29]} Nd7 {[%emt 0:03:35]} 14. Nxd7 {[%emt 0:03:37]} Qxd7 {[%emt 0:00:05]} 15. Qd3 {[%emt 0:00:59]} Re6 {[%emt 0:04:59]} 16. Rfe1 {[%emt 0:03:43]} Rf6 {[%emt 0:07:19]} 17. f3 {[%emt 0:06:08]} Nd6 {[%emt 0:01:09]} 18. Re2 {[%emt 0:03:43]} Qf5 {[%emt 0:05:30]} 19. Qxf5 {[%emt 0:03:39]} Nxf5 {[%emt 0:00:12]} 20. Rae1 {[%emt 0:00:43]} h6 {[%emt 0:00:36]} 21. c3 {[%emt 0:00:37]} Nd6 {[%emt 0:07:30]} 22. Re7 {[%emt 0:01:59]} Nc4 {[%emt 0:00:08]} 23. Bc1 {[%emt 0:00:19]} Rc8 {[%emt 0:02:08]} 24. b3 {[%emt 0:02:28]} Nd6 {[%emt 0:03:24]} 25. Rd7 {[%emt 0:00:45]} Kf8 {[%emt 0:03:45]} 26. Re5 {[%emt 0:10:03]} Re6 {[%emt 0:01:18]} 27. Rxe6 {[%emt 0:05:33]} fxe6 {[%emt 0:00:05]} 28. a4 {[%emt 0:01:24]} Nf5 {[%emt 0:08:41]} 29. Bf4 {[%emt 0:01:17]} Ke8 {[%emt 0:00:09]} 30. Rxc7 {[%emt 0:00:41]} Rxc7 {[%emt 0:00:04]} 31. Bxc7 {[%emt 0:00:03]} Ne3 {[%emt 0:00:10]} 32. Bf4 {[%emt 0:01:47]} Nd1 {[%emt 0:00:53]} 33. Bd2 {[%emt 0:00:29]} Nb2 {[%emt 0:01:00]} 34. Kf1 {[%emt 0:00:29]} e5 {[%emt 0:07:14]} 35. Ke2 {[%emt 0:02:57]} e4 {[%emt 0:00:22]} 36. fxe4 {[%emt 0:00:19]} dxe4 {[%emt 0:00:05]} 37. Ke3 {[%emt 0:00:18]} Nd1+ {[%emt 0:00:28]} 38. Kxe4 {[%emt 0:00:30]} Nf2+ {[%emt 0:00:19]} 39. Kf3 {[%emt 0:00:30]} Nd3 {[%emt 0:04:26]} 40. Ke2 {[%emt 0:01:14]} 1-0

[Event "DFMMLV 2019"]
[Site "Braunfels"]
[Date "2019.06.23"]
[Round "5.22"]
[White "Franzenburg, Maria"]
[Black "Zell, Mirjam"]
[Result "1-0"]
[ECO "A03"]
[WhiteElo "1860"]
[BlackElo "1660"]
[Annotator "NA"]
[PlyCount "83"]
[EventDate "2019.06.20"]
[EventType "team-tourn"]
[EventCountry "GER"]
[SourceTitle "playchess.com"]
[Source "ChessBase"]
[SourceQuality "1"]
[WhiteTeam "Schleswig Holstein"]
[BlackTeam "Wuerttemberg 2"]
[TimeControl "40/5400+30:1800+30"]

1. f4 {[%emt 0:00:00]} d5 {[%emt 0:00:48]} 2. g3 {[%emt 0:00:00]} c5 {[%emt 0:01:10]} 3. Bg2 {[%emt 0:00:00]} Nc6 {[%emt 0:00:26]} 4. Nf3 {[%emt 0:00:49]} e6 {[%emt 0:01:07]} 5. O-O {[%emt 0:00:22]} Nf6 {[%emt 0:07:40]} 6. d3 {[%emt 0:01:17]} Be7 {[%emt 0:01:12]} 7. c3 {[%emt 0:00:53]} O-O {[%emt 0:00:35]} 8. a4 {[%emt 0:01:18]} Qc7 {[%emt 0:03:59]} 9. Na3 {[%emt 0:03:16]} a6 {[%emt 0:00:41]} 10. Qe1 {[%emt 0:03:01]} b6 {[%emt 0:12:41]} 11. e4 {[%emt 0:04:24]} dxe4 {[%emt 0:03:58]} 12. dxe4 {[%emt 0:00:06]} Bb7 {[%emt 0:02:22]} 13. Nc4 {[%emt 0:09:15]} Rad8 {[%emt 0:05:13]} 14. f5 {[%emt 0:07:50]} b5 {[%emt 0:05:49]} 15. Bf4 {[%emt 0:05:44]} e5 {[%emt 0:15:03]} 16. Ncxe5 {[%emt 0:04:33]} Nxe5 {[%emt 0:02:21]} 17. Bxe5 {[%emt 0:02:24]} Qc6 {[%emt 0:01:53]} 18. axb5 {[%emt 0:06:15]} axb5 {[%emt 0:03:41]} 19. Nd2 {[%emt 0:08:19]} Rfe8 {[%emt 0:04:51]} 20. Qe2 {[%emt 0:06:54]} c4 {[%emt 0:10:04]} 21. Bd4 {[%emt 0:06:08]} Bc5 {[%emt 0:02:36]} 22. Bxc5 {[%emt 0:02:47]} Qxc5+ {[%emt 0:00:14]} 23. Kh1 {[%emt 0:00:24]} Re7 {[%emt 0:05:25]} 24. Rae1 {[%emt 0:01:06]} Rde8 {[%emt 0:01:33]} 25. Rf4 {[%emt 0:04:36]} Re5 {[%emt 0:03:14]} 26. h3 {[%emt 0:04:00]} Qe7 {[%emt 0:01:14]} 27. Kh2 {[%emt 0:01:09]} Kf8 {[%emt 0:01:41]} 28. Qf2 {[%emt 0:03:00]} Kg8 {[%emt 0:00:51]} 29. Rh4 {[%emt 0:01:53]} Qc7 {[%emt 0:00:43]} 30. Qf4 {[%emt 0:01:37]} Qc5 {[%emt 0:00:05]} 31. g4 {[%emt 0:01:32]} h6 {[%emt 0:00:53]} 32. g5 {[%emt 0:01:59]} Nh5 {[%emt 0:01:07]} 33. Rxh5 {[%emt 0:01:06]} Rxf5 {[%emt 0:00:10]} 34. Qxf5 {[%emt 0:00:41]} Qxf5 {[%emt 0:00:22]} 35. exf5 {[%emt 0:00:09]} Rxe1 {[%emt 0:00:04]} 36. Bxb7 {[%emt 0:00:14]} Re2+ {[%emt 0:00:05]} 37. Bg2 {[%emt 0:00:06]} Rxd2 {[%emt 0:00:04]} 38. gxh6 {[%emt 0:00:31]} gxh6 {[%emt 0:00:28]} 39. Rxh6 {[%emt 0:01:40]} Rxb2 {[%emt 0:00:14]} 40. Rb6 {[%emt 0:00:52]} Rb3 {[%emt 0:01:32]} 41. f6 {[%emt 0:31:45]} Rxc3 {[%emt 0:31:19]} 42. Be4 {[%emt 0:00:19]} 1-0

[Event "DFMMLV 2019"]
[Site "Braunfels"]
[Date "2019.06.23"]
[Round "5.23"]
[White "Zell, Hannah"]
[Black "Mundt, Alexandra"]
[Result "0-1"]
[ECO "A20"]
[WhiteElo "1473"]
[BlackElo "1797"]
[Annotator "NA"]
[PlyCount "120"]
[EventDate "2019.06.20"]
[EventType "team-tourn"]
[EventCountry "GER"]
[SourceTitle "playchess.com"]
[Source "ChessBase"]
[SourceQuality "1"]
[WhiteTeam "Wuerttemberg 2"]
[BlackTeam "Schleswig Holstein"]
[TimeControl "40/5400+30:1800+30"]

1. c4 {[%emt 0:00:00]} e5 {[%emt 0:00:00]} 2. g3 {[%emt 0:00:00]} Nf6 {[%emt 0:00:00]} 3. Bg2 {[%emt 0:00:00]} d5 {[%emt 0:00:00]} 4. cxd5 {[%emt 0:01:21]} Nxd5 {[%emt 0:00:09]} 5. Nc3 {[%emt 0:00:29]} Ne7 {[%emt 0:00:08]} 6. e3 {[%emt 0:02:35]} Nbc6 {[%emt 0:03:44]} 7. Nge2 {[%emt 0:02:42]} g6 {[%emt 0:10:44]} 8. a3 {[%emt 0:03:50]} Bg7 {[%emt 0:03:08]} 9. b4 {[%emt 0:03:15]} a6 {[%emt 0:00:04]} 10. Bb2 {[%emt 0:00:28]} O-O {[%emt 0:08:47]} 11. O-O {[%emt 0:01:52]} Kh8 {[%emt 0:01:35]} 12. Qc1 {[%emt 0:02:42]} Bf5 {[%emt 0:03:17]} 13. Rd1 {[%emt 0:03:31]} Bd3 {[%emt 0:03:37]} 14. Bf1 {[%emt 0:09:04]} Qd7 {[%emt 0:14:14]} 15. Kg2 {[%emt 0:04:35]} f5 {[%emt 0:16:45]} 16. Ng1 {[%emt 0:11:11]} Bxf1+ {[%emt 0:10:38]} 17. Rxf1 {[%emt 0:01:22]} f4 {[%emt 0:00:05]} 18. Qc2 {[%emt 0:08:51]} Rad8 {[%emt 0:00:54]} 19. Rad1 {[%emt 0:01:23]} Qg4 {[%emt 0:09:29]} 20. Qe4 {[%emt 0:08:45]} Nf5 {[%emt 0:06:21]} 21. h3 {[%emt 0:06:52]} Qg5 {[%emt 0:02:23]} 22. Nf3 {[%emt 0:01:39]} Qe7 {[%emt 0:00:57]} 23. exf4 {[%emt 0:05:22]} Nd6 {[%emt 0:00:17]} 24. Qe2 {[%emt 0:00:38]} exf4 {[%emt 0:00:29]} 25. Qxe7 {[%emt 0:01:37]} Nxe7 {[%emt 0:00:02]} 26. Na4 {[%emt 0:00:49]} Bxb2 {[%emt 0:00:52]} 27. Nxb2 {[%emt 0:00:07]} fxg3 {[%emt 0:00:49]} 28. fxg3 {[%emt 0:00:10]} Nc6 {[%emt 0:02:14]} 29. d3 {[%emt 0:02:22]} Nb5 {[%emt 0:00:30]} 30. a4 {[%emt 0:03:02]} Nc3 {[%emt 0:00:34]} 31. Rde1 {[%emt 0:02:13]} Nxb4 {[%emt 0:00:49]} 32. Ne5 {[%emt 0:00:54]} Rc8 {[%emt 0:01:35]} 33. Nd7 {[%emt 0:01:58]} Rxf1 {[%emt 0:00:25]} 34. Rxf1 {[%emt 0:00:10]} Kg7 {[%emt 0:00:23]} 35. Ne5 {[%emt 0:01:12]} Rf8 {[%emt 0:00:41]} 36. Rxf8 {[%emt 0:00:45]} Kxf8 {[%emt 0:00:01]} 37. Kf3 {[%emt 0:00:42]} Nbd5 {[%emt 0:00:33]} 38. Nd7+ {[%emt 0:01:47]} Ke7 {[%emt 0:01:04]} 39. Nc5 {[%emt 0:00:39]} b5 {[%emt 0:00:41]} 40. a5 {[%emt 0:02:28]} Kd6 {[%emt 0:00:29]} 41. Nxa6 {[%emt 0:30:55]} Na4 {[%emt 0:14:38]} 42. Nxa4 {[%emt 0:00:00]} bxa4 {[%emt 0:00:06]} 43. d4 {[%emt 0:00:00]} a3 {[%emt 0:06:50]} 44. Nc5 {[%emt 0:00:00]} a2 {[%emt 0:00:46]} 45. Nb3 {[%emt 0:00:00]} Nb4 {[%emt 0:00:15]} 46. Na1 {[%emt 0:00:00]} Kd5 {[%emt 0:02:28]} 47. Ke3 {[%emt 0:00:00]} h6 {[%emt 0:01:23]} 48. g4 {[%emt 0:00:00]} g5 {[%emt 0:01:09]} 49. a6 {[%emt 0:00:00]} Nxa6 {[%emt 0:01:13]} 50. Kd3 {[%emt 0:00:00]} Nb4+ {[%emt 0:01:09]} 51. Kc3 {[%emt 0:00:00]} Nc6 {[%emt 0:00:49]} 52. Kd3 {[%emt 0:00:00]} Nxd4 {[%emt 0:00:30]} 53. Kc3 {[%emt 0:00:00]} Ne2+ {[%emt 0:00:51]} 54. Kb2 {[%emt 0:00:00]} Nf4 {[%emt 0:01:19]} 55. Nc2 {[%emt 0:00:00]} Ke4 {[%emt 0:00:46]} 56. Kxa2 {[%emt 0:00:00]} Nxh3 {[%emt 0:00:06]} 57. Kb3 {[%emt 0:00:00]} Nf2 {[%emt 0:00:08]} 58. Kc4 {[%emt 0:00:00]} Nxg4 {[%emt 0:00:20]} 59. Nd4 {[%emt 0:00:00]} Ne5+ {[%emt 0:00:27]} 60. Kc5 {[%emt 0:00:00]} g4 {[%emt 0:00:22]} 0-1

[Event "DFMMLV 2019"]
[Site "Braunfels"]
[Date "2019.06.23"]
[Round "5.24"]
[White "Freter, Anke"]
[Black "Krotsch, Maxi"]
[Result "1-0"]
[ECO "C61"]
[WhiteElo "1856"]
[BlackElo "942"]
[Annotator "NA"]
[PlyCount "91"]
[EventDate "2019.06.20"]
[EventType "team-tourn"]
[EventCountry "GER"]
[SourceTitle "playchess.com"]
[Source "ChessBase"]
[SourceQuality "1"]
[WhiteTeam "Schleswig Holstein"]
[BlackTeam "Wuerttemberg 2"]
[TimeControl "40/5400+30:1800+30"]

1. e4 {[%emt 0:00:00]} e5 {[%emt 0:00:00]} 2. Nf3 {[%emt 0:00:07]} Nc6 {[%emt 0:00:10]} 3. Bb5 {[%emt 0:00:09]} Nd4 {[%emt 0:01:24]} 4. Nxd4 {[%emt 0:01:43]} exd4 {[%emt 0:00:49]} 5. O-O {[%emt 0:00:56]} c6 {[%emt 0:01:04]} 6. Bc4 {[%emt 0:00:58]} d5 {[%emt 0:00:33]} 7. exd5 {[%emt 0:01:51]} cxd5 {[%emt 0:01:29]} 8. Bb3 {[%emt 0:03:28]} Be7 {[%emt 0:00:12]} 9. d3 {[%emt 0:01:17]} Nf6 {[%emt 0:00:22]} 10. Nd2 {[%emt 0:03:37]} O-O {[%emt 0:00:14]} 11. Nf3 {[%emt 0:00:18]} Qc7 {[%emt 0:00:33]} 12. h3 {[%emt 0:02:22]} Qd7 {[%emt 0:00:53]} 13. Nxd4 {[%emt 0:04:50]} Bc5 {[%emt 0:00:49]} 14. Be3 {[%emt 0:01:41]} Qe7 {[%emt 0:00:49]} 15. c3 {[%emt 0:05:33]} Qe5 {[%emt 0:02:47]} 16. Nf3 {[%emt 0:00:59]} Qh5 {[%emt 0:00:50]} 17. Bxc5 {[%emt 0:04:23]} Re8 {[%emt 0:00:26]} 18. Bd6 {[%emt 0:04:56]} Qg6 {[%emt 0:00:23]} 19. Bg3 {[%emt 0:03:36]} Nh5 {[%emt 0:02:27]} 20. Nh4 {[%emt 0:07:11]} Qg5 {[%emt 0:01:09]} 21. Qf3 {[%emt 0:03:51]} Re6 {[%emt 0:02:17]} 22. Qxd5 {[%emt 0:01:19]} Qe7 {[%emt 0:01:22]} 23. Qxh5 {[%emt 0:00:54]} g6 {[%emt 0:00:13]} 24. Qf3 {[%emt 0:00:38]} Rf6 {[%emt 0:00:29]} 25. Qe4 {[%emt 0:00:46]} Re6 {[%emt 0:00:25]} 26. Bxe6 {[%emt 0:00:21]} Bxe6 {[%emt 0:00:12]} 27. Rfe1 {[%emt 0:00:36]} g5 {[%emt 0:00:20]} 28. Nf5 {[%emt 0:01:22]} Qf6 {[%emt 0:00:24]} 29. Nd4 {[%emt 0:00:37]} Re8 {[%emt 0:00:39]} 30. Nxe6 {[%emt 0:01:05]} Rxe6 {[%emt 0:00:26]} 31. Qxb7 {[%emt 0:00:33]} Ra6 {[%emt 0:00:22]} 32. Re8+ {[%emt 0:00:44]} Kg7 33. Be5 Kh6 {[%emt 0:00:57]} 34. Bxf6 {[%emt 0:00:28]} Rxf6 {[%emt 0:00:26]} 35. Re7 {[%emt 0:01:16]} Kg6 {[%emt 0:00:22]} 36. Rae1 {[%emt 0:00:58]} Kg7 37. Qxa7 {[%emt 0:00:43]} Kg6 {[%emt 0:00:47]} 38. g4 {[%emt 0:00:35]} Kg7 39. Rd7 {[%emt 0:01:09]} Kg6 {[%emt 0:01:06]} 40. Ree7 {[%emt 0:00:18]} Rf3 {[%emt 0:00:44]} 41. Kg2 {[%emt 0:30:32]} Rf6 {[%emt 0:30:41]} 42. Rxf7 {[%emt 0:00:33]} Rxf7 {[%emt 0:00:34]} 43. Rxf7 {[%emt 0:00:03]} h6 {[%emt 0:00:28]} 44. Rf5 {[%emt 0:01:25]} h5 {[%emt 0:00:13]} 45. Qf7+ {[%emt 0:00:10]} Kh6 {[%emt 0:00:10]} 46. Rf6# {[%emt 0:00:15]} 1-0